bitfinex/quotes_ETHUSD_20250406
["timestamp","ask_amount","ask_price","bid_price","bid_amount"]
[1743950156463,4.81553666,1755.2,1755.0,47.273]
[1743950156664,0.35253836,1755.1,1755.0,47.273]
[1743950156974,3.98813666,1755.2,1755.0,51.2616]
[1743950157168,0.35253836,1755.1,1755.0,51.2616]
[1743950157558,0.7814,1755.3,1755.0,51.26145]
[1743950157943,0.35295752,1755.2,1755.0,51.26145]
[1743950158137,0.35295752,1755.2,1755.0,47.273]
[1743950158875,0.35295752,1755.2,1755.0,51.26156]
[1743950159371,0.35295752,1755.2,1755.1,4.04534346]
[1743950159673,3.98749,1755.5,1755.1,8.0337098]
[1743950159868,0.35403048,1755.4,1755.1,3.98837]
[1743950160281,0.35403048,1755.4,1755.1,0.05696646]
[1743950160484,0.05,1755.9,1755.7,3.98701]
[1743950160661,0.05,1755.9,1755.8,6.661701]
[1743950160866,0.05,1755.9,1755.8,6.263]
[1743950161164,0.05,1755.9,1755.8,10.24978]
[1743950161483,0.05,1755.9,1755.8,6.263]
[1743950163496,0.40893801,1755.9,1755.8,6.263]
[1743950168097,4.76818,1755.8,1755.7,40.998]
[1743950168301,5.09735378,1755.8,1755.7,47.256]
[1743950168483,9.01387925,1755.8,1755.7,40.998]
[1743950168796,4.76864,1755.6,1755.5,6.258]
[1743950169016,10.18234966,1755.6,1755.5,6.258]
[1743950169162,3.98799,1755.3,1755.2,6.258]
[1743950169365,7.97605666,1755.3,1755.2,6.258]
[1743950169686,9.06932918,1755.3,1755.2,6.258]
[1743950171678,4.75507,1755.1,1755.0,47.255]
[1743950171987,9.06586551,1755.1,1755.0,47.255]
[1743950172181,10.37127506,1755.1,1755.0,40.998]
[1743950173567,9.06586551,1755.1,1755.0,40.998]
[1743950173777,1.08935885,1755.1,1755.0,40.998]
[1743950174078,3.98815,1755.2,1755.0,40.998]
[1743950174591,0.32175457,1755.1,1755.0,40.998]
[1743950175300,8.74292666,1755.3,1755.0,40.998]
[1743950175506,0.32229122,1755.2,1755.0,40.998]
[1743950178107,0.32229122,1755.2,1755.0,41.7546]
[1743950178318,0.32229122,1755.2,1755.1,0.0569743]
[1743950178489,12.73224666,1755.7,1755.2,3.988]
[1743950178813,3.32530758,1755.6,1755.3,10.24291]
[1743950178994,3.32530758,1755.6,1755.4,1.024291]
[1743950179206,0.32530758,1755.6,1755.4,1.024291]
[1743950179710,4.31267758,1755.6,1755.4,1.024291]
[1743950180808,0.7699,1755.4,1755.3,6.255]
[1743950181008,8.74549666,1755.5,1755.3,6.255]
[1743950181214,0.32434909,1755.4,1755.3,6.255]
[1743950182215,3.98809,1755.3,1755.0,41.7546]
[1743950182514,0.32303184,1755.2,1755.1,6.253]
[1743950183097,0.32303184,1755.2,1755.1,6.30997057]
[1743950183298,0.32303184,1755.2,1755.1,10.29834057]
[1743950183490,7.97561666,1755.5,1755.1,10.29834057]
[1743950183693,0.32456199,1755.4,1755.1,10.24137]
[1743950184040,0.32456199,1755.4,1755.2,1.024137]
[1743950184316,0.32456199,1755.4,1755.3,0.05696415]
[1743950184786,0.32456199,1755.4,1755.3,4.87008415]
[1743950184994,0.05,1755.9,1755.7,3.9869]
[1743950185189,0.05,1755.9,1755.8,11.51861814]
[1743950185398,0.05,1755.9,1755.8,11.46167]
[1743950188089,0.05,1755.9,1755.8,6.64869]
[1743950188979,0.05,1755.9,1755.8,10.63547]
[1743950189178,0.05,1755.9,1755.8,10.69241472]
[1743950189415,0.05,1755.9,1755.8,6.64869]
[1743950190832,0.05,1755.9,1755.8,10.69241521]
[1743950191305,0.05,1755.9,1755.8,10.63547]
[1743950192526,0.29538979,1755.9,1755.8,10.63547]
[1743950193230,0.29538979,1755.9,1755.8,10.69241115]
[1743950193395,0.29538979,1755.9,1755.8,11.51651115]
[1743950193595,0.29538979,1755.9,1755.8,52.45457]
[1743950193924,0.05,1755.9,1755.8,52.45457]
[1743950194628,1e-05,1755.9,1755.8,56.00457]
[1743950195716,1e-05,1755.9,1755.8,56.10457]
[1743950196035,1e-05,1755.9,1755.8,56.00457]
[1743950196399,1e-05,1755.9,1755.8,55.99857]
[1743950197925,1e-05,1755.9,1755.8,56.27796751]
[1743950199002,0.05,1756.9,1756.8,3.98451]
[1743950199233,0.05,1756.9,1756.8,47.229]
[1743950199400,0.30679998,1756.9,1756.8,47.229]
[1743950200013,5.10268998,1756.9,1756.8,40.987]
[1743950200235,12.51837965,1756.9,1756.8,47.229]
[1743950200400,14.16862662,1756.9,1756.8,40.987]
[1743950200605,14.16862662,1756.9,1756.8,47.229]
[1743950204238,14.16862662,1756.9,1756.8,47.226]
[1743950204400,14.16862662,1756.9,1756.8,40.987]
[1743950204607,6.9846,1756.8,1756.1,40.98]
[1743950204810,4.79711,1756.4,1756.2,6.239]
[1743950205007,3.98519,1756.5,1756.3,6.238]
[1743950205608,3.0,1756.5,1756.3,6.238]
[1743950206552,3.98531,1756.5,1756.3,6.238]
[1743950206707,7.97068,1756.5,1756.3,6.238]
[1743950206902,3.98542,1756.4,1756.3,6.238]
[1743950207416,3.0,1756.5,1756.3,6.238]
[1743950207647,4.79613,1756.8,1756.4,3.98542]
[1743950207938,4.79613,1756.8,1756.4,7.97076]
[1743950208341,4.79613,1756.8,1756.3,51.20363]
[1743950208510,4.21314926,1756.7,1756.3,51.20363]
[1743950208863,4.21314926,1756.7,1756.3,47.218]
[1743950208864,3.98507,1756.6,1756.3,47.218]
[1743950209009,4.21314926,1756.7,1756.3,47.218]
[1743950209209,0.22753602,1756.5,1756.3,51.20361]
[1743950209409,3.98477,1756.7,1756.3,51.20361]
[1743950209609,0.22700013,1756.4,1756.3,51.20361]
[1743950209831,3.98477,1756.7,1756.3,55.18909]
[1743950210009,4.79613,1756.8,1756.4,3.9854]
[1743950210207,0.05,1756.9,1756.6,0.8202]
[1743950210407,0.05,1756.9,1756.7,10.27758663]
[1743950210842,0.05,1756.9,1756.7,10.27749663]
[1743950211215,0.05,1756.9,1756.8,3.98451]
[1743950211433,0.05,1756.9,1756.8,4.04141598]
[1743950211940,0.05,1756.9,1756.8,3.98451]
[1743950212313,0.05,1756.9,1756.8,4.04142135]
[1743950213332,0.05,1756.9,1756.8,4.04141887]
[1743950213540,0.05,1756.9,1756.8,3.98451]
[1743950215653,1e-05,1756.9,1756.8,7.35371]
[1743950215834,1e-05,1756.9,1756.8,10.35371]
[1743950216037,3.98233,1757.8,1756.8,10.35371]
[1743950216038,3.98233,1757.8,1757.4,3.98311]
[1743950216274,0.8064,1757.9,1757.6,3.98258]
[1743950216417,0.23665824,1757.7,1757.6,3.98258]
[1743950216722,0.8064,1757.9,1757.6,3.98258]
[1743950216922,0.23927267,1757.8,1757.6,3.98258]
[1743950217246,0.23927267,1757.8,1757.6,3.98253]
[1743950218468,3.98249,1757.7,1757.5,47.205]
[1743950218825,0.23774671,1757.6,1757.5,47.205]
[1743950219329,0.8064,1757.9,1757.5,47.205]
[1743950219532,0.23983796,1757.8,1757.5,51.18792]
[1743950219732,4.7886,1757.9,1757.5,51.18792]
[1743950219950,0.24006604,1757.8,1757.5,51.18792]
[1743950220257,4.22231604,1757.8,1757.5,47.205]
[1743950220641,3.98251,1757.7,1757.5,47.205]
[1743950221046,0.23874395,1757.6,1757.5,47.205]
[1743950221433,4.78842,1757.9,1757.5,51.18783]
[1743950221632,0.23874395,1757.6,1757.5,51.18783]
[1743950221881,4.78842,1757.9,1757.5,51.18783]
[1743950222164,0.23981377,1757.8,1757.5,51.18783]
[1743950222543,4.22207377,1757.8,1757.5,47.205]
[1743950222746,3.98249,1757.7,1757.5,47.205]
[1743950222948,0.23874395,1757.6,1757.5,47.205]
[1743950224270,4.22144395,1757.6,1757.5,47.205]
[1743950224467,0.23874395,1757.6,1757.5,40.972]
[1743950224770,0.23874395,1757.6,1757.5,47.199]
[1743950225170,5.00774395,1757.6,1757.5,40.972]
[1743950225335,5.00774395,1757.6,1757.5,47.199]
[1743950225537,1.02504395,1757.6,1757.5,47.199]
[1743950225838,0.23874395,1757.6,1757.5,47.199]
[1743950226652,0.23874395,1757.6,1757.5,51.94623]
[1743950226855,0.05,1757.9,1757.7,3.98245]
[1743950227058,0.05,1757.9,1757.8,0.05688276]
[1743950227241,0.05,1757.9,1757.7,3.98245]
[1743950227447,0.05,1757.9,1757.7,3.98234]
[1743950227666,0.05,1757.9,1757.8,4.43736678]
[1743950228862,0.05,1757.9,1757.8,5.20166678]
[1743950229160,0.05,1757.9,1757.8,5.144784]
[1743950229547,0.05,1757.9,1757.6,4.785]
[1743950230483,0.05,1757.9,1757.6,4.78484]
[1743950230649,0.05,1757.9,1757.7,4.03935288]
[1743950231479,0.34592536,1757.9,1757.7,4.03935288]
[1743950232053,0.34592536,1757.9,1757.7,3.98247]
[1743950232248,0.34592536,1757.9,1757.5,40.972]
[1743950232249,0.815,1757.8,1757.5,40.972]
[1743950232473,8.77974,1757.8,1757.6,6.223]
[1743950232667,4.79733,1757.8,1757.6,6.223]
[1743950233357,0.815,1757.8,1757.6,6.223]
[1743950233557,0.34592536,1757.9,1757.7,4.03935997]
[1743950233983,0.34592536,1757.9,1757.8,3.98225]
[1743950236288,0.34592536,1757.9,1757.7,7.96485]
[1743950236460,0.34592536,1757.9,1757.7,3.98238]
[1743950236656,0.34592536,1757.9,1757.7,3.98233]
[1743950236858,0.34592536,1757.9,1757.8,4.380483]
[1743950238187,0.34592536,1757.9,1757.8,5.211683]
[1743950238485,0.05,1757.9,1757.8,5.211683]
[1743950238654,0.05,1757.9,1757.8,4.380483]
[1743950238862,0.05,1757.9,1757.8,0.398233]
[1743950239071,0.29252645,1757.9,1757.8,41.347233]
[1743950239271,0.05,1757.9,1757.8,41.347233]
[1743950239461,0.29264043,1757.9,1757.8,41.347233]
[1743950239660,0.05,1757.9,1757.8,41.347233]
[1743950239895,0.29264043,1757.9,1757.8,41.347233]
[1743950240496,5.09896043,1757.9,1757.8,47.168]
[1743950241494,12.5146501,1757.9,1757.8,47.168]
[1743950243892,12.5146501,1757.9,1757.8,40.949]
[1743950244892,8.09896043,1757.9,1757.8,40.949]
[1743950246078,3.29264043,1757.9,1757.8,40.949]
[1743950246278,0.29264043,1757.9,1757.8,40.949]
[1743950246785,3.29264043,1757.9,1757.8,40.949]
[1743950246988,7.27466043,1757.9,1757.8,40.949]
[1743950247572,0.29264043,1757.9,1757.8,40.949]
[1743950249603,0.29264043,1757.9,1757.8,44.93125]
[1743950250007,0.29264043,1757.9,1757.8,40.949]
[1743950250501,5.04346043,1757.9,1757.8,40.949]
[1743950250804,5.04346043,1757.9,1757.8,47.164]
[1743950251101,1.06144043,1757.9,1757.8,47.164]
[1743950251306,0.29264043,1757.9,1757.8,47.164]
[1743950252021,12.4591501,1757.9,1757.8,40.949]
[1743950252178,13.51348414,1757.9,1757.8,40.949]
[1743950253413,3.98225,1757.8,1757.7,6.214]
[1743950253613,7.75105,1757.8,1757.7,6.214]
[1743950253824,8.90403489,1757.8,1757.7,6.214]
[1743950254141,9.19994794,1757.8,1757.7,6.214]
[1743950255623,9.62131973,1757.8,1757.7,6.214]
[1743950257726,9.19994794,1757.8,1757.7,6.214]
[1743950259893,9.6178211,1757.8,1757.7,6.214]
[1743950261424,14.14704339,1757.8,1757.7,6.214]
[1743950262217,13.59704339,1757.8,1757.7,6.214]
[1743950262416,13.17917023,1757.8,1757.7,6.214]
[1743950264026,0.53221249,1757.8,1757.7,6.214]
[1743950264200,4.51446249,1757.8,1757.7,6.214]
[1743950264402,7.51446249,1757.8,1757.7,6.214]
[1743950264906,8.31956249,1757.8,1757.7,6.214]
[1743950266151,3.0,1757.7,1757.3,0.8186]
[1743950266323,7.96204229,1757.6,1757.4,6.21]
[1743950266525,8.19483298,1757.6,1757.4,6.91286]
[1743950267923,8.19483298,1757.6,1757.4,6.21]
[1743950268117,3.98293,1757.5,1757.4,6.21]
[1743950268552,4.21518537,1757.5,1757.4,6.21]
[1743950268728,7.21518537,1757.5,1757.4,6.21]
[1743950271425,3.23225537,1757.5,1757.4,6.21]
[1743950272052,7.21518537,1757.5,1757.4,6.21]
[1743950272258,3.23225537,1757.5,1757.4,6.21]
[1743950272965,7.21518537,1757.5,1757.4,6.21]
[1743950274863,3.98315,1757.4,1757.3,40.955]
[1743950275029,3.98315,1757.4,1757.3,47.162]
[1743950275230,4.2146455,1757.4,1757.3,47.162]
[1743950276330,0.2314955,1757.4,1757.3,47.162]
[1743950278067,0.2314955,1757.4,1757.3,6.207]
[1743950279042,0.2314955,1757.4,1757.3,11.07798419]
[1743950279238,0.2314955,1757.4,1757.3,11.07797597]
[1743950279440,6.98249,1757.7,1757.3,11.02108]
[1743950279638,0.23269006,1757.6,1757.3,11.02108]
[1743950280334,3.98315,1757.4,1757.3,6.207]
[1743950280837,4.2147887,1757.4,1757.3,6.207]
[1743950281040,0.2316387,1757.4,1757.3,6.207]
[1743950284075,0.2316387,1757.4,1757.3,6.19705024]
[1743950284280,3.98313,1757.5,1757.3,6.19705024]
[1743950285176,3.98315,1757.4,1757.3,6.19705024]
[1743950285499,4.2146552,1757.4,1757.3,6.19705024]
[1743950286093,0.2315052,1757.4,1757.3,6.19705024]
[1743950288379,8.79263229,1757.6,1757.3,6.19705024]
[1743950288583,0.2315052,1757.4,1757.3,6.19705024]
[1743950289252,8.79263229,1757.6,1757.3,6.19705024]
[1743950289452,0.23204059,1757.5,1757.3,6.19705024]
[1743950291702,4.21499059,1757.5,1757.3,6.19705024]
[1743950291873,3.98315,1757.4,1757.3,6.19705024]
[1743950292072,4.2146552,1757.4,1757.3,6.19705024]
[1743950292273,0.2315052,1757.4,1757.3,6.19705024]
[1743950292963,0.2315052,1757.4,1757.3,6.2]
[1743950293469,0.2315052,1757.4,1757.3,10.80338]
[1743950293680,7.96149229,1757.8,1757.5,3.9829]
[1743950293858,7.96149229,1757.8,1757.4,4.0399359]
[1743950294485,3.98248,1757.7,1757.4,4.0399359]
[1743950295055,3.98248,1757.7,1757.4,44.9969359]
[1743950295256,3.98248,1757.7,1757.4,45.63205254]
[1743950295872,7.96149229,1757.8,1757.4,49.61507254]
[1743950296495,3.98293,1757.5,1757.4,40.957]
[1743950296789,3.98293,1757.5,1757.4,47.155]
[1743950298862,4.17252117,1757.5,1757.4,47.155]
[1743950299561,0.18959117,1757.5,1757.4,47.155]
[1743950299762,0.18959117,1757.5,1757.4,6.198]
[1743950300177,4.17252117,1757.5,1757.4,6.198]
[1743950300374,3.98329,1757.4,1757.2,40.955]
[1743950300698,3.98329,1757.4,1757.3,6.196]
[1743950301286,3.98297,1757.5,1757.3,6.196]
[1743950302498,3.0,1757.6,1757.3,6.25290397]
[1743950302701,3.0,1757.6,1757.4,0.8279]
[1743950303111,0.7796,1757.8,1757.5,3.98273]
[1743950303297,4.02922229,1757.9,1757.6,4.03951369]
[1743950303607,0.05,1757.9,1757.7,7.0229]
[1743950303788,0.05,1757.9,1757.7,11.00522]
[1743950304594,0.05,1757.9,1757.7,11.06210369]
[1743950305198,0.05,1757.9,1757.7,7.0229]
[1743950305385,8.01134229,1757.9,1757.8,6.194]
[1743950305989,4.02922229,1757.9,1757.8,6.194]
[1743950306292,0.05,1757.9,1757.8,6.194]
[1743950306679,8.01124229,1757.9,1757.8,6.194]
[1743950308406,8.01124229,1757.9,1757.5,4.86770918]
[1743950308589,8.01124229,1757.9,1757.8,6.193]
[1743950311227,4.02922229,1757.9,1757.8,6.193]
[1743950313031,8.01124229,1757.9,1757.8,6.193]
[1743950313594,8.20387227,1757.9,1757.8,6.193]
[1743950315927,0.24262998,1757.9,1757.8,10.94755]
[1743950316306,0.05,1757.9,1757.8,10.94755]
[1743950316620,0.24331463,1757.9,1757.8,10.94755]
[1743950316822,0.05,1757.9,1757.8,6.9653]
[1743950317009,0.24331463,1757.9,1757.8,6.9653]
[1743950317191,0.05,1757.9,1757.8,6.9653]
[1743950317394,0.24320053,1757.9,1757.8,6.9653]
[1743950317589,0.05,1757.9,1757.8,6.9653]
[1743950317796,0.24320053,1757.9,1757.8,6.9653]
[1743950320798,0.24320053,1757.9,1757.8,6.193]
[1743950321755,1.05840053,1757.9,1757.8,6.193]
[1743950321903,0.24320053,1757.9,1757.8,6.193]
[1743950323797,0.24320053,1757.9,1757.8,10.17525]
[1743950324001,0.24320053,1757.9,1757.8,10.99975]
[1743950326538,0.24320053,1757.9,1757.8,11.05662864]
[1743950326747,0.05,1757.9,1757.8,11.05662864]
[1743950328036,0.05,1757.9,1757.8,11.48750329]
[1743950328208,0.05,1757.9,1757.8,11.43062465]
[1743950328411,0.24390451,1757.9,1757.8,11.43062465]
[1743950328620,0.05,1757.9,1757.8,11.43062465]
[1743950330341,0.2440186,1757.9,1757.8,11.43062465]
[1743950330542,0.05,1757.9,1757.8,11.43062465]
[1743950330740,0.2440186,1757.9,1757.8,11.43062465]
[1743950330949,0.05,1757.9,1757.8,11.43062465]
[1743950331239,0.2440186,1757.9,1757.8,11.43062465]
[1743950331439,0.05,1757.9,1757.8,11.43062465]
[1743950331642,0.2440186,1757.9,1757.8,11.43062465]
[1743950333116,0.05,1757.9,1757.8,11.43062465]
[1743950333365,0.24388849,1757.9,1757.8,11.43062465]
[1743950333650,0.05,1757.9,1757.8,11.43062465]
[1743950333967,0.24388849,1757.9,1757.8,11.43062465]
[1743950334316,0.05,1757.9,1757.8,11.43062465]
[1743950334446,0.24388849,1757.9,1757.8,11.43062465]
[1743950334625,0.05,1757.9,1757.8,11.43062465]
[1743950335173,0.24400259,1757.9,1757.8,11.43062465]
[1743950335454,0.05,1757.9,1757.8,11.43062465]
[1743950335959,0.24400259,1757.9,1757.8,11.43062465]
[1743950336160,0.05,1757.9,1757.8,11.43062465]
[1743950336357,0.24388849,1757.9,1757.8,11.43062465]
[1743950336562,0.05,1757.9,1757.8,11.43062465]
[1743950336730,0.24388849,1757.9,1757.8,11.43062465]
[1743950336934,0.05,1757.9,1757.8,11.43062465]
[1743950337759,0.05,1757.9,1757.8,14.43062465]
[1743950337958,0.24691191,1757.9,1757.8,14.98062465]
[1743950338124,0.05,1757.9,1757.8,14.98062465]
[1743950339444,0.05,1757.9,1757.8,4.41312465]
[1743950339626,0.24862674,1757.9,1757.8,4.41312465]
[1743950339825,0.24862674,1757.9,1757.8,6.177]
[1743950340326,4.23078674,1757.9,1757.7,40.949]
[1743950340562,4.23078674,1757.9,1757.8,6.177]
[1743950340764,0.24862674,1757.9,1757.8,10.15925]
[1743950340963,0.24862674,1757.9,1757.8,6.177]
[1743950341167,0.8814,1757.9,1757.8,6.177]
[1743950341373,1.07982977,1757.9,1757.8,6.177]
[1743950341708,0.8814,1757.9,1757.8,6.177]
[1743950342070,0.8814,1757.9,1757.8,8.30351254]
[1743950342071,0.05,1757.9,1757.8,8.30351254]
[1743950342382,0.05,1757.9,1757.8,11.39323349]
[1743950342954,0.05,1757.9,1757.8,52.33223349]
[1743950345087,0.05,1757.9,1757.8,55.88223349]
[1743950347362,0.7618,1758.7,1758.6,3.98043]
[1743950347687,0.94793776,1758.7,1758.6,10.15443]
[1743950347886,0.94793776,1758.7,1758.6,51.09043]
[1743950348075,0.94793776,1758.7,1758.6,47.11]
[1743950348854,0.94793776,1758.7,1758.6,40.936]
[1743950349097,4.92814776,1758.7,1758.6,47.109]
[1743950349793,0.94793776,1758.7,1758.6,47.109]
[1743950351488,0.94793776,1758.7,1758.6,51.08943]
[1743950351691,3.8428,1758.9,1758.6,51.08943]
[1743950351871,0.18724178,1758.8,1758.6,51.08943]
[1743950352498,0.18724178,1758.8,1758.6,55.06973]
[1743950352665,0.18724178,1758.8,1758.7,0.05685304]
[1743950352867,0.18724178,1758.8,1758.7,4.03706304]
[1743950353074,0.05,1758.9,1758.8,3.97998]
[1743950353386,0.05,1758.9,1758.7,7.96028]
[1743950353588,0.05,1758.9,1758.7,3.98007]
[1743950353889,0.05,1758.9,1758.8,3.97998]
[1743950354095,0.05,1758.9,1758.7,3.98007]
[1743950354301,0.05,1758.9,1758.8,3.97998]
[1743950355079,0.05,1758.9,1758.8,4.79498]
[1743950356489,0.05,1758.9,1758.8,3.97998]
[1743950357196,0.05,1758.9,1758.7,3.98006]
[1743950357390,0.05,1758.9,1758.8,6.168]
[1743950357703,0.05,1758.9,1758.8,10.20482644]
[1743950358564,0.23893118,1758.9,1758.8,10.20482644]
[1743950358767,0.05,1758.9,1758.8,10.20482644]
[1743950358999,0.23893118,1758.9,1758.8,10.20482644]
[1743950359206,0.05,1758.9,1758.8,10.14798]
[1743950359911,0.23893118,1758.9,1758.8,10.14798]
[1743950360701,0.23893118,1758.9,1758.8,10.20482428]
[1743950360889,0.23893118,1758.9,1758.8,10.14798]
[1743950361484,0.23893118,1758.9,1758.8,10.20482314]
[1743950361875,1.04853118,1758.9,1758.6,40.936]
[1743950362092,3.98021,1758.7,1758.6,40.936]
[1743950362279,4.97880183,1758.7,1758.6,47.102]
[1743950364110,7.97880183,1758.7,1758.6,40.936]
[1743950364326,9.27262124,1758.7,1758.6,40.936]
[1743950366887,4.79026,1758.5,1758.4,6.165]
[1743950367091,8.95619587,1758.5,1758.4,6.165]
[1743950367897,4.79117,1758.1,1757.9,40.925]
[1743950368100,4.79117,1758.1,1758.0,6.164]
[1743950370027,0.8096,1758.1,1758.0,6.164]
[1743950370190,7.77734,1758.2,1758.0,6.164]
[1743950370997,4.77734,1758.2,1758.0,6.164]
[1743950371198,8.75888,1758.2,1758.0,6.164]
[1743950371415,3.98157,1758.1,1758.0,6.164]
[1743950371989,8.75656229,1758.2,1758.0,6.164]
[1743950372424,3.98157,1758.1,1758.0,6.164]
[1743950372722,3.98157,1758.1,1758.0,6.163]
[1743950373524,4.16482045,1758.1,1758.0,6.163]
[1743950373699,4.16482045,1758.1,1757.9,40.925]
[1743950373895,7.96101229,1758.0,1757.9,40.925]
[1743950374114,8.14372807,1758.0,1757.9,47.088]
[1743950376825,8.14372807,1758.0,1757.9,6.163]
[1743950377628,3.98225,1757.8,1757.7,2.11704603]
[1743950377919,8.14266069,1757.8,1757.7,8.27904603]
[1743950378928,8.14266069,1757.8,1757.7,2.11704603]
[1743950379259,3.98247,1757.7,1757.6,40.936]
[1743950379421,5.55343607,1757.7,1757.6,47.098]
[1743950379623,5.72851545,1757.7,1757.6,47.098]
[1743950379940,0.7567,1757.4,1756.9,40.939]
[1743950380132,7.96298229,1757.2,1757.0,6.161]
[1743950380313,4.15630941,1757.3,1757.0,6.161]
[1743950381143,4.15628941,1757.3,1757.0,6.161]
[1743950381517,8.13984941,1757.3,1757.0,6.161]
[1743950381723,3.98372,1757.2,1757.0,6.161]
[1743950381943,0.17173841,1757.1,1757.0,6.161]
[1743950382748,3.98348,1757.3,1757.0,6.21790899]
[1743950383038,0.17150666,1757.1,1757.0,6.161]
[1743950383245,3.98348,1757.3,1757.0,6.161]
[1743950383424,0.17150666,1757.1,1757.0,6.161]
[1743950383626,7.96755,1757.2,1757.0,6.161]
[1743950383924,0.16387333,1757.1,1757.0,6.161]
[1743950385044,4.14770333,1757.1,1757.0,6.161]
[1743950385408,0.16387333,1757.1,1757.0,6.161]
[1743950388344,4.14770333,1757.1,1757.0,6.161]
[1743950388551,4.90440333,1757.1,1757.0,6.161]
[1743950390119,4.90440333,1757.1,1757.0,6.16]
[1743950390322,3.98406,1757.0,1756.9,40.939]
[1743950390552,11.12592264,1757.0,1756.9,40.939]
[1743950390723,11.92622264,1757.0,1756.9,40.939]
[1743950392853,3.98474,1756.7,1756.6,6.16]
[1743950393060,11.76426229,1756.7,1756.6,6.16]
[1743950393352,11.92514591,1756.7,1756.6,6.16]
[1743950393950,11.92514591,1756.7,1756.2,41.7153]
[1743950394144,3.98526,1756.5,1756.3,6.159]
[1743950394522,0.15927588,1756.4,1756.3,6.159]
[1743950394852,15.74921229,1756.7,1756.3,10.14465]
[1743950395041,0.15927588,1756.4,1756.3,10.14465]
[1743950395240,12.18253074,1756.7,1756.3,10.14465]
[1743950395443,0.15927588,1756.4,1756.3,10.14465]
[1743950395641,3.98501,1756.6,1756.3,6.159]
[1743950395841,0.15927588,1756.4,1756.3,6.159]
[1743950396044,3.98501,1756.6,1756.3,6.159]
[1743950396244,0.15927588,1756.4,1756.3,6.159]
[1743950396756,3.9852,1756.5,1756.3,6.159]
[1743950396956,0.15927588,1756.4,1756.3,6.159]
[1743950397548,3.98501,1756.6,1756.3,6.159]
[1743950397726,0.15927588,1756.4,1756.3,6.159]
[1743950397930,3.9852,1756.5,1756.3,6.159]
[1743950398126,0.15927588,1756.4,1756.3,6.159]
[1743950401130,7.9708,1756.5,1756.3,6.159]
[1743950401332,0.15718515,1756.4,1756.3,6.159]
[1743950401531,4.14260515,1756.4,1756.3,6.159]
[1743950401762,3.98565,1756.3,1756.2,40.962]
[1743950401956,3.98565,1756.3,1756.2,47.12]
[1743950402259,8.12149126,1756.3,1756.2,47.12]
[1743950402463,8.12149126,1756.3,1756.2,40.962]
[1743950402662,8.12149126,1756.3,1756.2,47.12]
[1743950402965,9.41184239,1756.3,1756.2,40.962]
[1743950403166,10.20844239,1756.3,1756.2,40.962]
[1743950404436,13.20844239,1756.3,1756.2,40.962]
[1743950405561,3.98587,1756.2,1756.1,0.05]
[1743950405766,9.10331424,1756.2,1756.1,0.05]
[1743950405957,9.25837053,1756.2,1756.1,0.05]
[1743950408367,7.93752629,1756.2,1756.1,0.05]
[1743950408677,8.3595406,1756.2,1756.1,0.05]
[1743950408840,8.3395406,1756.2,1756.1,0.05]
[1743950413493,7.91752629,1756.2,1756.1,0.05]
[1743950426907,7.12092629,1756.2,1756.1,0.05]
[1743950427677,9.65482126,1756.2,1756.1,0.05]
[1743950430104,10.20482126,1756.2,1756.1,0.05]
[1743950431605,10.35207351,1756.2,1756.1,0.05]
[1743950432374,9.80207351,1756.2,1756.1,0.05]
[1743950432571,8.08297854,1756.2,1756.1,0.05]
[1743950434006,8.63297854,1756.2,1756.1,0.05]
[1743950434783,3.98678,1755.8,1755.6,0.8279]
[1743950434975,0.72128839,1756.2,1755.8,3.98657]
[1743950435177,0.41897985,1756.2,1756.0,4.81415]
[1743950435377,3.98552,1756.4,1756.1,6.9749]
[1743950437790,7.97112,1756.4,1756.1,6.9749]
[1743950439280,3.98552,1756.4,1756.1,6.9749]
[1743950443617,7.97111,1756.4,1756.1,6.9749]
[1743950444020,3.0,1756.4,1756.1,6.9749]
[1743950444219,3.98573,1756.3,1756.1,6.9749]
[1743950444922,3.98542,1756.4,1756.1,6.147]
[1743950445104,3.9852,1756.5,1756.2,0.88773452]
[1743950445488,3.9852,1756.5,1756.2,0.8308]
[1743950446121,3.0,1756.4,1756.2,0.88773426]
[1743950446300,3.98542,1756.4,1756.2,0.8308]
[1743950447425,3.0,1756.6,1756.2,0.8308]
[1743950447729,3.0,1756.6,1756.2,0.88773427]
[1743950447915,3.0,1756.6,1756.2,0.8308]
[1743950448627,0.24659417,1756.5,1756.2,0.8308]
[1743950448805,0.24659417,1756.5,1756.2,0.88773427]
[1743950449190,0.24659417,1756.5,1756.4,0.804]
[1743950449395,3.0,1756.8,1756.4,0.804]
[1743950449597,1.28673856,1757.1,1756.6,4.78888]
[1743950449810,0.24727628,1756.7,1756.6,4.78888]
[1743950450005,5.06706862,1757.2,1756.6,4.84579889]
[1743950450210,3.0,1757.1,1756.6,4.78888]
[1743950450409,3.24838463,1757.1,1756.6,4.78888]
[1743950451013,3.24838463,1757.1,1756.7,0.05691872]
[1743950451220,3.24838463,1757.1,1756.8,0.804]
[1743950451528,3.24838463,1757.1,1756.9,6.14]
[1743950456515,3.0,1756.9,1756.7,0.7677]
[1743950456728,3.97922229,1756.8,1756.5,4.75281]
[1743950457050,4.22601744,1756.8,1756.6,6.137]
[1743950457557,4.22601744,1756.8,1756.6,10.12197]
[1743950458424,4.22601744,1756.8,1756.6,14.1068]
[1743950459257,0.24679515,1756.8,1756.6,14.1068]
[1743950459558,3.97922229,1757.0,1756.6,14.1068]
[1743950459927,0.24777236,1756.9,1756.6,14.1068]